bitfinex-derivatives/quotes_BNBF0:USTF0_20250509
["timestamp","ask_amount","ask_price","bid_price","bid_amount"]
[1746803337872,0.743,636.23,635.41,0.28896696]
[1746803338167,0.743,636.23,635.43,0.31474749]
[1746803341974,0.366,636.22,635.43,0.31474749]
[1746803353281,0.366,636.22,635.43,0.81374749]
[1746803354883,0.474,636.21,635.43,0.81374749]
[1746803355886,0.474,636.21,635.44,0.28886968]
[1746803356587,0.474,636.21,635.45,0.584]
[1746803356988,0.474,636.21,635.45,0.89873758]
[1746803360893,0.367,636.2,635.45,0.89873758]
[1746803371205,0.26598698,636.19,635.45,0.89873758]
[1746803373508,0.367,636.2,635.45,0.89873758]
[1746803374815,0.26620777,636.19,635.45,0.89873758]
[1746803375715,0.26620777,636.19,635.46,1.14182481]
[1746803376016,0.26620777,636.19,635.47,1.14182481]
[1746803376712,0.26620777,636.19,635.48,1.14182481]
[1746803376916,0.26620777,636.19,635.45,0.89873758]
[1746803378117,0.63320777,636.19,635.45,0.89873758]
[1746803378318,0.63320777,636.19,635.46,0.512]
[1746803378617,0.26620777,636.18,635.47,1.14077044]
[1746803379420,0.26620777,636.18,635.48,1.14077044]
[1746803379920,0.367,636.19,635.48,1.14077044]
[1746803380122,0.367,636.19,635.49,1.14077044]
[1746803380617,0.367,636.19,635.5,1.14077044]
[1746803381021,0.367,636.19,635.46,0.78563869]
[1746803383217,0.367,636.19,635.46,0.512]
[1746803383623,0.367,636.19,635.46,0.78565267]
[1746803383821,0.367,636.19,635.46,0.512]
[1746803384019,0.367,636.19,635.47,0.442]
[1746803391128,0.26606036,636.18,635.47,0.442]
[1746803398237,0.747,636.17,635.47,0.442]
[1746803398737,0.26606036,636.16,635.47,0.442]
[1746803400339,0.747,636.17,635.47,0.442]
[1746803400741,0.26614522,636.16,635.47,0.442]
[1746803401636,0.27370325,636.15,635.47,0.442]
[1746803404544,0.26657483,636.14,635.47,0.442]
[1746803406447,0.26657483,636.16,635.47,0.442]
[1746803406945,0.26657483,636.16,635.46,0.512]
[1746803409249,0.26657483,636.16,635.47,0.451]
[1746803410548,0.367,636.15,635.47,0.451]
[1746803410941,0.26657483,636.14,635.47,0.451]
[1746803419552,0.68,636.13,635.47,0.451]
[1746803419959,0.26657483,636.12,635.47,0.451]
[1746803423960,0.26657483,636.12,635.48,0.536]
[1746803424459,0.367,636.11,635.48,0.536]
[1746803424761,0.26657483,636.1,635.48,0.536]
[1746803429466,0.26657483,636.1,635.49,1.14527947]
[1746803429662,0.26657483,636.1,635.48,0.536]
[1746803430166,0.367,636.11,635.48,0.536]
[1746803430366,0.26639616,636.09,635.48,0.536]
[1746803430967,0.26639616,636.1,635.48,0.536]
[1746803431168,0.26639616,636.1,635.49,1.14746916]
[1746803431771,0.26639616,636.1,635.48,0.536]
[1746803432569,0.26639616,636.1,635.49,1.14734079]
[1746803433069,0.26639616,636.1,635.5,1.14734079]
[1746803433569,0.26639616,636.1,635.51,1.14734079]
[1746803434069,0.26639616,636.1,635.52,1.14734079]
[1746803434567,0.367,636.11,635.53,1.14734079]
[1746803434869,0.367,636.11,635.54,1.14734079]
[1746803435266,0.367,636.11,635.55,1.14734079]
[1746803435670,0.367,636.11,635.56,1.14734079]
[1746803436169,0.367,636.11,635.57,1.14734079]
[1746803436671,0.367,636.11,635.58,1.14734079]
[1746803437372,0.367,636.11,635.48,0.536]
[1746803445374,0.26697191,636.1,635.48,0.536]
[1746803446970,0.26697191,636.12,635.48,0.536]
[1746803448977,0.26697191,636.29,635.48,0.536]
[1746803449574,0.2737517,636.28,635.48,0.536]
[1746803449776,0.2737517,636.28,635.49,0.31471777]
[1746803449972,0.26697191,636.27,635.49,0.75471777]
[1746803450377,0.367,636.26,635.49,0.75471777]
[1746803450576,0.26697191,636.25,635.49,0.75471777]
[1746803451776,0.464,636.24,635.49,0.75471777]
[1746803452172,0.26697191,636.23,635.49,0.75471777]
[1746803452577,0.27368818,636.22,635.49,0.75471777]
[1746803452975,0.26697191,636.21,635.49,0.75471777]
[1746803453679,0.26697191,636.21,635.5,0.493]
[1746803454072,0.27368818,636.22,635.5,0.493]
[1746803454474,0.26685972,636.21,635.5,0.493]
[1746803458585,0.27374201,636.2,635.5,0.493]
[1746803458782,0.26685972,636.19,635.5,0.493]
[1746803462888,0.26685972,636.18,635.5,0.493]
[1746803463187,0.26685972,636.17,635.5,0.493]
[1746803463687,0.26685972,636.16,635.5,0.493]
[1746803464088,0.26685972,636.15,635.5,0.493]
[1746803464383,0.464,636.24,635.5,0.493]
[1746803464587,0.27376139,636.14,635.5,0.493]
[1746803464782,0.26667864,636.23,635.5,0.493]
[1746803465087,0.27376139,636.13,635.5,0.493]
[1746803465383,0.26667864,636.23,635.5,0.493]
[1746803465589,0.26667864,636.12,635.5,0.493]
[1746803465785,0.54044003,636.12,635.5,0.493]
[1746803465987,0.26667864,636.12,635.5,0.493]
[1746803466183,0.27377539,636.11,635.5,0.493]
[1746803466988,0.26663442,636.1,635.5,0.493]
[1746803467588,0.273798,636.09,635.5,0.493]
[1746803468087,0.26663442,636.08,635.5,0.493]
[1746803471786,0.26663442,636.07,635.5,0.493]
[1746803472188,0.26663442,636.06,635.5,0.493]
[1746803472493,0.26663442,636.05,635.5,0.493]
[1746803472888,0.26663442,636.04,635.5,0.493]
[1746803473295,0.26663442,636.03,635.5,0.493]
[1746803473589,0.26663442,636.02,635.5,0.493]
[1746803473993,0.273798,636.09,635.5,0.493]
[1746803474293,0.26701955,636.08,635.5,0.493]
[1746803474693,0.26701955,636.07,635.5,0.493]
[1746803475090,0.26701955,636.06,635.5,0.493]
[1746803475394,0.26701955,636.05,635.5,0.493]
[1746803475895,0.26701955,636.04,635.5,0.493]
[1746803476190,0.26701955,636.03,635.5,0.493]
[1746803476495,0.26701955,636.02,635.5,0.493]
[1746803476996,0.26701955,636.01,635.5,0.493]
[1746803477292,0.26701955,636.0,635.5,0.493]
[1746803477794,0.26701955,635.99,635.49,0.75471777]
[1746803477988,0.26701955,635.98,635.49,0.75471777]
[1746803478491,0.26701955,635.97,635.49,0.75471777]
[1746803478692,0.26701955,635.96,635.49,0.75471777]
[1746803479093,0.26701955,635.95,635.49,0.75471777]
[1746803479491,0.26701955,635.94,635.49,0.75471777]
[1746803479691,0.54084125,635.94,635.49,0.75471777]
[1746803479892,0.2738217,635.94,635.49,0.75471777]
[1746803480196,0.26701955,635.93,635.49,0.75471777]
[1746803482598,0.27381524,635.92,635.49,0.75471777]
[1746803483095,0.26701955,635.91,635.49,0.75471777]
[1746803485501,0.27374954,635.95,635.49,0.75471777]
[1746803485900,0.26713919,635.94,635.49,0.31471777]
[1746803488004,0.26713919,636.1,635.49,0.31471777]
[1746803488304,0.26713919,636.1,635.5,0.46]
[1746803495804,0.26713919,636.1,635.51,0.31470787]
[1746803497607,0.27372909,636.09,635.51,0.31470787]
[1746803498107,0.26713919,636.08,635.51,0.31470787]
[1746803501711,0.27372909,636.09,635.51,0.31470787]
[1746803501913,0.2670551,636.08,635.51,0.31470787]
[1746803502421,0.27372909,636.09,635.51,0.31470787]
[1746803502718,0.612,636.11,635.51,0.31470787]
[1746803503828,0.367,636.13,635.51,0.31470787]
[1746803507224,1.08,636.13,635.51,0.31470787]
[1746803507524,1.08,636.13,635.52,0.566]
[1746803511424,1.08,636.13,635.53,0.31469796]
[1746803511626,0.713,636.13,635.53,0.31469796]
[1746803526337,0.367,636.15,635.53,0.31469796]
[1746803529541,1.208,636.15,635.53,0.31469796]
[1746803530745,1.208,636.15,635.53,0.97669796]
[1746803531845,1.208,636.15,635.53,1.53069796]
[1746803537151,0.26696292,636.14,635.53,1.53069796]
[1746803540955,1.208,636.15,635.53,1.53069796]
[1746803541351,0.26704326,636.14,635.53,1.53069796]
[1746803542556,0.27371294,636.13,635.53,1.53069796]
[1746803542858,0.26704326,636.12,635.53,1.53069796]
[1746803544150,0.26704326,636.14,635.53,1.53069796]
[1746803544552,1.208,636.15,635.53,1.53069796]
[1746803551961,0.54069902,636.14,635.53,1.53069796]
[1746803552256,0.26699577,636.13,635.53,1.53069796]
[1746803553163,0.27370325,636.14,635.53,1.53069796]
[1746803553664,1.208,636.15,635.53,1.53069796]
[1746803553866,0.26700126,636.13,635.53,1.53069796]
[1746803554066,0.26700126,636.14,635.53,1.53069796]
[1746803557767,0.27370433,636.13,635.53,1.53069796]
[1746803557961,0.26700126,636.12,635.53,1.53069796]
[1746803560274,0.27370433,636.13,635.53,1.53069796]
[1746803560469,1.208,636.15,635.53,1.53069796]
[1746803560869,0.27370433,636.12,635.53,1.53069796]
[1746803561572,0.26700479,636.11,635.53,1.53069796]
[1746803566680,0.27370433,636.12,635.53,1.53069796]
[1746803567179,0.26700479,636.11,635.53,1.53069796]
[1746803568881,0.26700479,636.14,635.53,1.53069796]
[1746803569680,0.54070481,636.14,635.53,1.53069796]
[1746803570481,0.26700479,636.13,635.53,1.53069796]
[1746803571583,1.209,636.15,635.53,1.53069796]
[1746803577883,0.26699772,636.14,635.53,1.53069796]
[1746803578883,1.209,636.15,635.53,1.53069796]
[1746803579179,0.26701678,636.14,635.53,1.53069796]
[1746803579878,1.209,636.15,635.53,1.53069796]
[1746803580282,0.26704664,636.14,635.53,1.53069796]
[1746803582683,0.26704664,636.14,635.53,0.97669796]
[1746803582886,0.27379046,636.13,635.53,0.97669796]
[1746803583386,0.26704664,636.12,635.53,0.97669796]
[1746803584587,0.26704664,636.14,635.53,0.97669796]
[1746803584785,0.27379046,636.11,635.53,0.97669796]
[1746803584980,0.26704664,636.1,635.53,0.97669796]
[1746803585880,0.26704664,636.1,635.53,1.42669796]
[1746803587686,0.27374524,636.09,635.53,1.42669796]
[1746803587989,0.26704664,636.08,635.53,1.42669796]
[1746803588489,0.27374524,636.09,635.53,1.42669796]
[1746803588788,0.26706441,636.08,635.53,1.42669796]
[1746803590786,0.27372586,636.07,635.53,1.42669796]
[1746803590986,0.26706441,636.06,635.53,1.42669796]
[1746803591986,0.27372586,636.07,635.53,1.42669796]
[1746803593492,1.209,636.15,635.53,1.42669796]
[1746803593694,0.27370218,636.13,635.53,1.42669796]
[1746803596394,1.209,636.15,635.53,1.42669796]
[1746803613303,0.26689816,636.14,635.53,1.42669796]
[1746803615505,1.209,636.15,635.53,1.42669796]
[1746803617605,0.26695928,636.14,635.53,1.42669796]
[1746803620706,0.27370218,636.13,635.53,1.42669796]
[1746803621107,0.26695928,636.12,635.53,1.42669796]
[1746803621408,0.27370218,636.13,635.53,1.42669796]
[1746803621707,0.26699507,636.12,635.53,1.42669796]
[1746803622309,0.27370218,636.13,635.53,1.42669796]
[1746803622910,0.26701703,636.12,635.53,1.42669796]
[1746803623707,0.2737237,636.11,635.53,1.42669796]
[1746803624101,0.26701703,636.1,635.53,1.42669796]
[1746803624608,0.26701703,636.1,635.53,1.112]
[1746803627209,0.2737237,636.11,635.53,1.112]
[1746803629409,1.209,636.15,635.53,1.112]
[1746803633813,1.209,636.15,635.54,0.31469301]
[1746803634111,0.368,636.15,635.54,0.31469301]
[1746803634414,0.27365913,636.33,635.54,0.31469301]
[1746803635009,1.99913276,637.72,635.54,0.31469301]
[1746803635214,0.31362709,637.7,635.54,0.31469301]
[1746803635416,0.27366236,636.45,635.54,0.31469301]
[1746803635715,0.31362709,637.7,635.54,0.31469301]
[1746803635913,0.31362709,637.7,635.54,1.06869301]
[1746803636118,0.27366451,636.45,635.54,1.06869301]
[1746803636314,0.2668677,637.69,635.54,1.06869301]
[1746803636617,0.27346559,636.45,635.54,1.06869301]
[1746803636817,0.31364185,637.67,635.54,1.06869301]
[1746803637017,0.27346881,636.45,635.54,1.06869301]
[1746803637221,0.27346881,636.45,635.54,1.83169301]
[1746803637414,0.31364185,637.67,635.54,1.83169301]
[1746803637620,0.64146881,636.45,635.54,1.83169301]
[1746803637918,0.368,636.45,635.54,1.83169301]
[1746803638317,0.64159996,636.45,635.54,1.83169301]
[1746803641122,0.2668655,636.44,635.54,1.83169301]
[1746803641723,0.27360642,636.43,635.54,1.83169301]
[1746803643929,0.26686778,636.42,635.54,1.83169301]
[1746803644828,0.27361502,636.41,635.54,1.83169301]
[1746803645228,0.26686778,636.4,635.54,1.83169301]
[1746803647934,0.26686778,636.44,635.54,1.83169301]
[1746803648132,0.368,636.45,635.54,1.83169301]
[1746803670954,0.368,636.45,635.55,0.28881829]
[1746803671254,1.286,636.45,635.57,0.31467816]
[1746803671648,1.286,636.45,635.58,0.28881829]
[1746803671849,1.286,636.45,635.6,0.31466331]
[1746803672154,1.286,636.45,635.61,0.28881829]
[1746803672352,1.286,636.45,635.63,0.31464845]
[1746803672955,1.286,636.45,635.64,0.28881829]
[1746803673354,1.286,636.45,635.63,0.31464845]
[1746803674951,1.286,636.45,635.64,0.637]
[1746803675455,1.286,636.45,635.66,0.3146336]
[1746803681565,1.286,636.45,635.67,0.28882235]
[1746803682163,1.286,636.45,635.68,0.31462371]
[1746803682764,1.286,636.45,635.69,0.28882235]
[1746803683265,1.286,636.45,635.7,0.31461381]
[1746803683960,1.286,636.45,635.71,0.28882235]
[1746803684164,1.286,636.45,635.7,0.31461381]
[1746803696378,1.286,636.45,635.71,0.28878872]
[1746803696581,1.286,636.45,635.72,0.31460391]
[1746803698188,1.286,636.45,635.73,0.2887923]
[1746803698380,1.286,636.45,635.74,0.31459401]
[1746803711588,0.918,636.45,635.74,0.31459401]
[1746803711895,0.27344517,637.08,635.74,0.31459401]
[1746803713494,1.99913276,638.41,635.74,0.31459401]
[1746803713791,0.27324872,637.07,635.74,0.31459401]
[1746803714189,0.26659202,638.4,635.74,0.31459401]
[1746803714387,1.99913276,638.41,635.74,0.31459401]
[1746803714888,0.62824872,638.4,635.74,0.31459401]
[1746803715189,0.89483906,638.4,635.74,0.31459401]
[1746803715386,0.62824872,638.4,635.74,0.31459401]
[1746803715592,0.97959078,638.39,635.74,0.31459401]
[1746803715887,0.31329793,638.37,635.74,0.31459401]
[1746803716287,0.26659078,638.36,635.74,0.31459401]
[1746803716490,1.99913276,638.29,635.74,0.31459401]
[1746803716994,0.26659078,638.28,635.74,0.31459401]
[1746803717293,0.26659078,638.27,635.74,0.31459401]
[1746803717793,0.26659078,638.26,635.74,0.31459401]
[1746803718092,0.26659078,638.25,635.74,0.31459401]
[1746803718492,0.26659078,638.24,635.74,0.31459401]
[1746803718793,1.99913276,638.05,635.74,0.31459401]
[1746803719291,0.26659078,638.04,635.74,0.31459401]
[1746803719789,0.26659078,638.03,635.74,0.31459401]
[1746803720093,0.26659078,638.02,635.74,0.31459401]
[1746803720396,0.27331202,638.03,635.74,0.31459401]
[1746803720696,0.26664345,638.02,635.74,0.31459401]
[1746803720994,0.27331202,638.03,635.74,0.31459401]
[1746803721290,0.26664012,638.02,635.74,0.31459401]
[1746803721494,0.31347471,638.01,635.74,0.31459401]
[1746803721694,0.58011483,638.01,635.74,0.31459401]
[1746803721896,0.26664012,638.0,635.74,0.31459401]
[1746803722297,0.26664012,637.99,635.74,0.31459401]
[1746803722495,0.31348945,637.98,635.74,0.31459401]
[1746803722696,0.58678967,637.98,635.74,0.31459401]
[1746803722896,0.26664211,637.97,635.74,0.31459401]
[1746803723101,1.99913276,637.94,635.74,0.31459401]
[1746803723599,0.26664211,637.93,635.74,0.31459401]
[1746803723899,0.26664211,637.92,635.74,0.31459401]
[1746803724300,0.26664211,637.91,635.74,0.31459401]
[1746803724599,0.26664211,637.9,635.74,0.31459401]
[1746803725000,0.26664211,637.89,635.74,0.31459401]
[1746803725399,1.99913276,637.81,635.74,0.31459401]
[1746803725995,0.26664211,637.8,635.74,0.31459401]
[1746803726199,0.26664211,637.79,635.74,0.31459401]
[1746803726599,0.26664211,637.78,635.74,0.31459401]
[1746803726899,0.26664211,637.77,635.74,0.31459401]
[1746803727297,0.26664211,637.76,635.74,0.31459401]
[1746803727598,0.26664211,637.75,635.74,0.31459401]
[1746803727999,0.26664211,637.74,635.74,0.31459401]
[1746803728401,0.26664211,637.73,635.74,0.31459401]
[1746803728799,0.26664211,637.72,635.74,0.31459401]
[1746803729196,0.26664211,637.71,635.74,0.31459401]
[1746803729502,0.26664211,637.7,635.74,0.31459401]
[1746803729701,1.99913276,637.62,635.74,0.31459401]
[1746803730400,0.26664211,637.61,635.74,0.31459401]
[1746803730702,0.26664211,637.61,635.75,0.794]
[1746803730903,0.26664211,637.6,635.75,0.794]
[1746803731103,0.26664211,637.59,635.75,0.794]
[1746803731698,0.26664211,637.58,635.75,0.794]
[1746803731897,0.26664211,637.57,635.75,0.794]
[1746803732198,0.26664211,637.56,635.75,0.794]
[1746803732606,0.715,637.55,635.75,0.794]
[1746803732806,0.98164211,637.55,635.75,0.794]
[1746803733000,0.26664211,637.54,635.75,0.794]
[1746803733304,0.26664211,637.53,635.75,0.794]
[1746803733706,0.26664211,637.52,635.75,0.794]
[1746803734005,0.26664211,637.51,635.75,0.794]
[1746803734306,0.26664211,637.5,635.75,0.794]
[1746803734501,0.26664211,637.49,635.75,0.794]
[1746803734804,0.26664211,637.48,635.75,0.794]
[1746803735105,0.26664211,637.47,635.75,0.794]
[1746803735407,1.99913276,637.45,635.75,0.794]
[1746803735901,0.26664211,637.44,635.75,0.794]
[1746803736105,0.26664211,637.43,635.75,0.794]
[1746803736510,0.26664211,637.42,635.75,0.794]
[1746803736708,0.26664211,637.41,635.75,0.794]
[1746803737109,0.26664211,637.4,635.75,0.794]
[1746803737407,0.26664211,637.39,635.75,0.794]
[1746803737711,0.54004754,637.39,635.75,0.794]
[1746803738010,0.26664211,637.38,635.75,0.794]
[1746803738211,0.26664211,637.37,635.75,0.794]
[1746803738607,0.26664211,637.36,635.75,0.794]
[1746803738913,0.26664211,637.35,635.75,0.794]
[1746803739315,0.26664211,637.34,635.75,0.794]
[1746803740010,0.26664211,637.33,635.75,0.794]
[1746803740309,0.26664211,637.32,635.75,0.794]
[1746803740711,0.26664211,637.31,635.75,0.794]
[1746803740911,0.26664211,637.3,635.75,0.794]
[1746803741413,0.26664211,637.29,635.75,0.794]
[1746803741706,0.26664211,637.28,635.75,0.794]
[1746803742011,0.62264211,637.28,635.75,0.794]
[1746803742213,0.26664211,637.27,635.75,0.794]
[1746803742512,0.26664211,637.26,635.75,0.794]
[1746803742712,0.26664211,637.25,635.75,0.794]
[1746803743012,0.26664211,637.25,635.74,0.5879887]
[1746803743413,0.26664211,637.25,635.74,0.31459401]
[1746803743614,0.356,637.28,635.74,0.31459401]
[1746803743815,0.27346451,637.24,635.74,0.31459401]
[1746803744715,0.26680575,637.23,635.74,0.31459401]
[1746803745012,0.26680575,637.22,635.74,0.31459401]
[1746803745315,0.26680575,637.21,635.74,0.31459401]
[1746803745515,0.26680575,637.21,635.75,0.529]
[1746803745714,0.26680575,637.2,635.75,0.529]
[1746803746015,0.27346451,637.24,635.75,0.529]
[1746803746317,0.26685516,637.23,635.76,0.672]
[1746803746717,0.26685516,637.22,635.76,0.672]
[1746803747017,0.26685516,637.21,635.76,0.672]
[1746803747317,0.26685516,637.2,635.76,0.672]
[1746803747613,0.26685516,637.19,635.76,0.672]
[1746803748317,0.26685516,637.18,635.76,0.672]
[1746803748619,0.26685516,637.17,635.76,0.672]
[1746803749013,0.26685516,637.16,635.76,0.672]
[1746803749318,0.26685516,637.15,635.76,0.672]
[1746803749717,0.26685516,637.14,635.76,0.672]
[1746803749921,0.26685516,637.13,635.76,0.672]
[1746803750321,0.26685516,637.12,635.76,0.672]
[1746803750921,0.26685516,637.11,635.76,0.672]
[1746803751424,0.26685516,637.1,635.76,0.672]
[1746803751722,0.27347633,637.14,635.76,0.672]
[1746803751723,0.26685516,637.09,635.76,0.672]
[1746803752024,1.14785516,637.08,635.76,0.672]
[1746803752525,0.26685516,637.07,635.76,0.672]
[1746803753125,0.26685516,637.06,635.76,0.672]
[1746803753425,0.26685516,637.05,635.76,0.672]
[1746803754024,0.26685516,637.04,635.76,0.672]
[1746803754824,0.26685516,637.03,635.76,0.672]
[1746803755220,0.26685516,637.02,635.76,0.672]
[1746803755627,0.26685516,637.01,635.76,0.672]
[1746803755826,0.54036373,637.01,635.76,0.672]
[1746803756027,0.26685516,637.0,635.76,0.672]
[1746803756527,0.26685516,636.99,635.76,0.672]
[1746803756928,0.26685516,636.98,635.76,0.672]
[1746803757528,0.26685516,636.97,635.76,0.672]
[1746803757731,0.26685516,636.96,635.76,0.672]
[1746803757930,0.26685516,636.95,635.76,0.672]
[1746803758231,0.26685516,636.94,635.76,0.672]
[1746803758427,0.26685516,636.93,635.76,0.672]
[1746803758731,0.54034654,636.93,635.76,0.672]
[1746803759730,0.27349138,636.93,635.76,0.672]
[1746803760335,0.26685516,636.92,635.76,0.672]
[1746803763835,0.27349138,636.93,635.76,0.672]
[1746803764234,0.62370195,636.92,635.76,0.672]
[1746803764534,0.26670195,636.91,635.76,0.672]
[1746803767338,0.636,636.9,635.76,0.672]
[1746803767838,0.2734355,636.89,635.76,0.672]
[1746803768840,0.26668739,636.88,635.76,0.672]
[1746803770838,0.27345699,636.87,635.76,0.672]
[1746803771142,0.26668739,636.86,635.76,0.672]
[1746803773345,0.26668739,636.86,635.75,0.529]
[1746803773840,0.27347848,636.85,635.75,0.529]
[1746803774446,0.26668739,636.84,635.75,0.529]
[1746803776848,0.27346774,636.83,635.75,0.529]
[1746803777149,0.27346774,636.83,635.76,0.479]
[1746803777341,0.26668739,636.82,635.76,0.479]
[1746803778242,0.27346774,636.83,635.76,0.479]
[1746803778446,0.26675762,636.82,635.76,0.479]
[1746803781151,0.26675762,636.89,635.76,0.479]
[1746803782451,0.26675762,636.88,635.76,0.479]
[1746803782852,0.26675762,636.87,635.76,0.479]
[1746803783153,0.26675762,636.89,635.76,0.479]
[1746803783446,0.26675762,636.88,635.76,0.479]
[1746803784046,0.26675762,636.87,635.76,0.479]
[1746803784349,0.26675762,636.86,635.76,0.479]
[1746803784950,0.26675762,636.89,635.76,0.479]
[1746803785151,0.26675762,636.85,635.76,0.479]
[1746803785451,0.26675762,636.89,635.76,0.479]
[1746803786852,0.26675762,636.88,635.76,0.479]
[1746803787048,0.54027479,636.88,635.76,0.479]
[1746803787255,0.27351717,636.88,635.76,0.479]
[1746803787553,0.26675762,636.87,635.76,0.479]
[1746803789053,0.27349782,636.86,635.77,0.643]
[1746803789255,0.54025544,636.86,635.77,0.643]
[1746803789456,0.26675762,636.85,635.77,0.643]
[1746803790956,0.357,636.84,635.77,0.643]
[1746803791351,0.26675762,636.83,635.77,0.643]
[1746803791756,0.27350105,636.82,635.77,0.643]
[1746803792057,0.26675762,636.81,635.77,0.643]
[1746803793158,0.897,636.8,635.77,0.643]
[1746803793557,0.26675762,636.79,635.77,0.643]
[1746803794753,0.27347096,636.78,635.77,0.643]
[1746803795255,0.26675762,636.77,635.77,0.643]
[1746803797658,0.27347096,636.76,635.77,0.643]
[1746803798059,0.26675762,636.75,635.77,0.643]
[1746803800758,0.27350535,636.74,635.77,0.643]
[1746803801058,0.26675762,636.73,635.77,0.643]
[1746803803360,0.26675762,636.73,635.79,0.31456927]
[1746803803859,0.26675762,636.79,635.79,0.31456927]
[1746803804062,0.27350965,636.72,635.79,0.31456927]
[1746803804559,0.26675762,636.71,635.79,0.31456927]
[1746803805656,0.27350965,636.72,635.79,0.31456927]
[1746803806062,0.26678579,636.71,635.79,0.31456927]
[1746803806662,0.357,636.7,635.79,0.31456927]
[1746803806961,0.630486,636.7,635.79,0.31456927]
[1746803807262,0.26678579,636.69,635.79,0.31456927]
[1746803809757,0.2735204,636.68,635.79,0.31456927]
[1746803810460,0.26678579,636.67,635.79,0.31456927]
[1746803812767,0.2735204,636.66,635.79,0.31456927]
[1746803812961,0.26678579,636.65,635.79,0.31456927]
[1746803815770,0.2735204,636.64,635.79,0.31456927]
[1746803816269,0.26678579,636.63,635.79,0.31456927]
[1746803816971,0.26678579,636.69,635.79,0.31456927]
[1746803817272,0.357,636.7,635.79,0.31456927]
[1746803817672,0.26673139,636.69,635.79,0.31456927]
[1746803818475,0.26673139,636.69,635.79,0.86856927]
[1746803820172,0.357,636.7,635.79,0.86856927]
[1746803821476,0.357,636.7,635.79,1.41256927]
[1746803821677,0.867,636.7,635.79,1.41256927]
[1746803824479,0.26673722,636.69,635.79,1.41256927]
[1746803837389,0.62373722,636.69,635.79,1.41256927]
[1746803837686,0.26673722,636.68,635.79,1.41256927]
[1746803839786,0.357,636.69,635.79,1.41256927]
[1746803844991,1.268,636.69,635.79,1.41256927]
[1746803863213,0.26671639,636.68,635.79,1.41256927]
[1746803864309,0.911,636.69,635.79,1.41256927]
[1746803864914,0.26672652,636.68,635.79,1.41256927]
[1746803866009,0.911,636.69,635.79,1.41256927]
[1746803866719,1.268,636.69,635.79,1.41256927]
[1746803875219,0.2667687,636.68,635.79,1.41256927]
[1746803875915,0.27351072,636.67,635.79,1.41256927]
[1746803876119,0.27351072,636.67,635.79,1.098]
[1746803876319,0.2667687,636.66,635.79,1.098]
[1746803878823,0.27351932,636.65,635.79,1.098]
[1746803879120,0.2667687,636.64,635.79,1.098]
[1746803879321,1.1437687,636.64,635.79,1.098]
[1746803879822,0.2667687,636.63,635.79,1.098]
[1746803882127,0.357,636.62,635.79,1.098]
[1746803882625,0.2667687,636.61,635.79,1.098]
[1746803884333,0.357,636.62,635.79,1.098]
[1746803885028,0.26675217,636.61,635.79,1.098]
[1746803891831,0.357,636.62,635.79,1.098]
[1746803898432,0.357,636.62,635.81,0.31455938]
[1746803900935,0.357,636.62,635.81,0.81155938]
[1746803902338,0.357,636.62,635.81,1.39655938]
[1746803909745,0.357,636.62,635.82,0.28874748]
[1746803910042,0.532,636.61,635.82,0.28874748]
[1746803912046,0.532,636.61,635.81,1.39655938]
[1746803913049,0.358,636.6,635.81,1.39655938]
[1746803922151,0.358,636.6,635.82,0.28872543]
[1746803924553,0.831,636.59,635.82,0.28872543]
[1746803924750,0.831,636.59,635.83,0.715]
[1746803925153,0.831,636.59,635.84,0.28872543]
[1746803926453,0.831,636.59,635.85,0.673]
[1746803926749,0.831,636.59,635.86,0.28872543]
[1746803929558,0.831,636.59,635.87,0.31452969]
[1746803929960,0.831,636.59,635.88,0.28872543]
[1746803933055,0.831,636.59,635.87,0.31452969]
[1746803935159,0.358,636.58,635.87,0.31452969]
[1746803941572,0.358,636.58,635.88,0.28866325]
[1746803941973,0.358,636.58,635.87,0.58788787]
[1746803950574,0.358,636.58,635.87,0.31452969]
[1746803952877,1.291,636.58,635.87,0.31452969]
[1746803958982,1.291,636.58,635.88,0.54]
[1746803964986,0.26649303,636.57,635.88,0.54]